bitfinex-derivatives/quotes_BTCF0:USTF0_20260118
["timestamp","ask_amount","ask_price","bid_price","bid_amount"]
[1768743651560,0.20001661,95179.0,95175.0,0.001]
[1768743651962,0.757,95178.0,95175.0,0.001]
[1768743652261,0.04358528,95178.0,95175.0,0.001]
[1768743652461,0.01051,95187.0,95175.0,0.001]
[1768743652665,0.48877286,95189.0,95180.0,0.07294642]
[1768743652666,8.50167037,95185.0,95180.0,0.07294642]
[1768743652865,9.89911037,95186.0,95180.0,0.07294642]
[1768743653066,0.3778,95181.0,95180.0,0.07294642]
[1768743653265,0.3778,95181.0,95175.0,0.001]
[1768743653467,1.39744,95186.0,95175.0,0.001]
[1768743653666,0.09576172,95185.0,95175.0,0.001]
[1768743653864,1.49320172,95184.0,95173.0,0.09441555]
[1768743654064,1.49320172,95184.0,95172.0,0.14469504]
[1768743654368,1.37964947,95184.0,95174.0,0.09441555]
[1768743654669,1.37964947,95184.0,95173.0,0.09441555]
[1768743654975,1.37964947,95184.0,95175.0,0.001]
[1768743655379,1.29448507,95184.0,95175.0,0.001]
[1768743655781,0.09576172,95183.0,95175.0,0.001]
[1768743655980,0.09576172,95182.0,95167.0,0.05844055]
[1768743656179,0.09576172,95182.0,95161.0,0.132465]
[1768743656481,0.09576172,95182.0,95168.0,0.2635433]
[1768743656676,0.010511,95177.0,95169.0,3.9e-07]
[1768743656878,0.09576172,95172.0,95161.0,0.05895305]
[1768743657077,1.3974,95171.0,95153.0,0.13254017]
[1768743657277,0.0946,95170.0,95162.0,0.15677223]
[1768743657478,0.0946,95170.0,95160.0,0.26181674]
[1768743657677,0.0946,95170.0,95153.0,0.05654132]
[1768743658080,0.0946,95170.0,95161.0,0.26181674]
[1768743658270,0.0946,95170.0,95154.0,0.15674714]
[1768743658477,0.0946,95170.0,95162.0,0.157245]
[1768743658876,0.0946,95170.0,95153.0,0.05654132]
[1768743659076,0.0946,95170.0,95157.0,0.157245]
[1768743659276,0.0946,95170.0,95163.0,0.157245]
[1768743659476,0.0946,95169.0,95153.0,0.05654132]
[1768743659782,0.0946,95169.0,95164.0,0.1577479]
[1768743659978,0.0946,95169.0,95156.0,0.10507954]
[1768743659979,0.20087372,95169.0,95156.0,0.10507954]
[1768743660180,0.20087372,95169.0,95165.0,0.15779043]
[1768743660481,8.50167037,95166.0,95157.0,0.15779043]
[1768743660673,0.19036172,95169.0,95156.0,0.15839972]
[1768743660870,0.0946,95169.0,95153.0,0.05654132]
[1768743661080,0.09576172,95175.0,95153.0,0.05654132]
[1768743661081,1.2842,95168.0,95153.0,0.05654132]
[1768743661280,0.43060694,95170.0,95157.0,0.05816592]
[1768743661476,6.2e-07,95172.0,95154.0,0.15839972]
[1768743661681,6.2e-07,95172.0,95153.0,0.05669894]
[1768743661682,0.010509,95192.0,95164.0,0.010512]
[1768743661892,0.39588,95187.0,95167.0,0.010512]
[1768743662199,0.39588,95187.0,95167.0,0.01235953]
[1768743662478,0.39588,95187.0,95169.0,0.010512]
[1768743662682,0.39588,95187.0,95168.0,0.10506629]
[1768743662883,0.39588,95187.0,95167.0,0.00184753]
[1768743663077,0.52520694,95186.0,95168.0,0.10506684]
[1768743663277,0.43060694,95186.0,95168.0,0.10506684]
[1768743663478,0.0946,95185.0,95168.0,0.10506684]
[1768743664882,0.09576172,95191.0,95168.0,0.10506684]
[1768743665184,0.43060694,95188.0,95169.0,0.00274457]
[1768743665883,0.43060694,95188.0,95170.0,0.10506795]
[1768743666284,0.0946,95188.0,95173.0,0.010511]
[1768743666487,0.0946,95188.0,95174.0,0.00274457]
[1768743666686,0.09576172,95194.0,95174.0,0.00274457]
[1768743666881,0.43060694,95193.0,95175.0,0.10506574]
[1768743667084,0.52520694,95193.0,95175.0,0.10506574]
[1768743667387,0.43060694,95193.0,95175.0,0.10506574]
[1768743667583,0.43060694,95193.0,95175.0,0.10275211]
[1768743668784,0.0796,95192.0,95176.0,0.23402668]
[1768743669082,0.0946,95196.0,95176.0,0.15847085]
[1768743669483,0.0946,95196.0,95177.0,0.10505967]
[1768743669885,0.0946,95196.0,95178.0,0.15702887]
[1768743670183,0.19036172,95196.0,95175.0,0.26208578]
[1768743670379,0.19036172,95196.0,95175.0,0.15702887]
[1768743670579,0.19036172,95196.0,95176.0,0.10505691]
[1768743670983,0.19036172,95196.0,95177.0,0.15760357]
[1768743671691,0.19036172,95196.0,95178.0,0.10505746]
[1768743672080,0.09576172,95196.0,95179.0,0.15814669]
[1768743672285,0.19036172,95196.0,95179.0,0.15814669]
[1768743672486,0.19036172,95196.0,95176.0,0.15806299]
[1768743672687,0.19036172,95196.0,95174.0,0.00015762]
[1768743672994,0.19036172,95196.0,95180.0,0.10505636]
[1768743673195,0.19036172,95196.0,95175.0,0.15806299]
[1768743673396,0.19036172,95196.0,95175.0,0.10505857]
[1768743673595,0.19036172,95196.0,95175.0,0.15655852]
[1768743673898,0.09576172,95196.0,95175.0,0.26161709]
[1768743674287,0.09576172,95196.0,95176.0,0.010511]
[1768743674689,0.09576172,95196.0,95177.0,0.15726424]
[1768743674889,0.09576172,95196.0,95177.0,0.26232225]
[1768743675594,0.0946,95197.0,95177.0,0.26232225]
[1768743675794,0.09576172,95196.0,95177.0,0.26232225]
[1768743676695,0.09576172,95196.0,95177.0,0.27283325]
[1768743677097,0.09576172,95196.0,95177.0,0.27051951]
[1768743678101,0.09576172,95196.0,95180.0,0.010511]
[1768743678291,0.43060694,95198.0,95180.0,0.010511]
[1768743678492,8.50167037,95197.0,95181.0,0.15720562]
[1768743678694,8.50167037,95197.0,95181.0,0.26226253]
[1768743678898,8.50167037,95196.0,95181.0,0.26226253]
[1768743679101,8.50167037,95197.0,95181.0,0.26226253]
[1768743679308,8.50167037,95197.0,95181.0,0.27277253]
[1768743679493,8.50167037,95196.0,95181.0,0.27277253]
[1768743679693,8.50167037,95197.0,95181.0,0.27277253]
[1768743680194,0.43060694,95198.0,95185.0,0.05652028]
[1768743680395,0.43060694,95198.0,95186.0,0.05652028]
[1768743680588,8.50167037,95196.0,95186.0,0.05652028]
[1768743680789,8.50167037,95196.0,95181.0,0.01151]
[1768743680790,0.00231083,95204.0,95187.0,0.31991374]
[1768743680991,0.00231083,95204.0,95188.0,0.18813028]
[1768743681221,0.00231072,95209.0,95194.0,0.010509]
[1768743681411,0.09807206,95224.0,95200.0,0.05652028]
[1768743681706,0.09807206,95224.0,95204.0,0.05652028]
[1768743681894,0.09576172,95218.0,95205.0,0.05652028]
[1768743682095,0.09576172,95218.0,95205.0,0.15761739]
[1768743682302,27.50095499,95219.0,95204.0,0.05652028]
[1768743682501,27.50095499,95219.0,95206.0,0.10502932]
[1768743682801,0.09613112,95217.0,95207.0,0.15731847]
[1768743682999,0.09613112,95212.0,95204.0,0.05711587]
[1768743683195,0.09613112,95212.0,95205.0,0.15731847]
[1768743683399,7.88745637,95206.0,95202.0,0.05668007]
[1768743683598,7.88745637,95206.0,95184.0,0.09444494]
[1768743683599,0.09613112,95203.0,95191.0,0.07537067]
[1768743683797,7.88745637,95201.0,95194.0,0.10272588]
[1768743683998,7.88745637,95201.0,95195.0,0.15733123]
[1768743684201,7.88745637,95196.0,95195.0,0.15733123]
[1768743684399,7.74555823,95196.0,95195.0,0.15733123]
[1768743685904,7.74555823,95196.0,95194.0,0.05722709]
[1768743686115,7.74555823,95195.0,95184.0,0.05796777]
[1768743686317,7.74555823,95198.0,95195.0,0.0370656]
[1768743686617,7.74555823,95199.0,95185.0,0.26251099]
[1768743686907,7.74555823,95199.0,95183.0,0.05806237]
[1768743687108,7.74787235,95198.0,95186.0,0.26251099]
[1768743687407,8.17847929,95199.0,95185.0,0.11250747]
[1768743687606,7.74555823,95197.0,95187.0,0.26251485]
[1768743687806,7.74555823,95201.0,95187.0,0.15746401]
[1768743688010,7.74555823,95198.0,95186.0,0.15746401]
[1768743688204,7.74555823,95199.0,95188.0,0.26350226]
[1768743688404,7.74555823,95198.0,95186.0,0.15827372]
[1768743688705,7.74555823,95199.0,95189.0,0.26332456]
[1768743688908,7.74555823,95198.0,95189.0,0.15827372]
[1768743689102,7.74555823,95196.0,95186.0,0.15827372]
[1768743689403,7.74555823,95197.0,95186.0,0.10504863]
[1768743689606,7.74555823,95198.0,95186.0,0.2616253]
[1768743689795,7.74555823,95196.0,95186.0,0.2616253]
[1768743690207,7.74555823,95194.0,95186.0,0.2616253]
[1768743690402,7.74555823,95195.0,95186.0,0.2616253]
[1768743690709,7.74555823,95196.0,95186.0,0.2616253]
[1768743691095,7.74555823,95193.0,95186.0,0.2616253]
[1768743691300,0.43060694,95200.0,95186.0,0.2616253]
[1768743691301,7.74555823,95195.0,95186.0,0.2616253]
[1768743691708,0.00231412,95199.0,95186.0,0.2616253]
[1768743691709,7.74555823,95193.0,95186.0,0.2616253]
[1768743692008,7.74555823,95195.0,95186.0,0.2616253]
[1768743692205,7.74555823,95194.0,95186.0,0.2616253]
[1768743692406,7.74555823,95189.0,95182.0,0.05712847]
[1768743692597,7.95565589,95192.0,95177.0,0.09456]
[1768743692796,7.74555823,95188.0,95187.0,0.02097263]
[1768743693002,7.74787235,95191.0,95177.0,0.09456]
[1768743693202,7.74787235,95190.0,95177.0,0.09224577]
[1768743693402,7.74555823,95190.0,95187.0,0.12204249]
[1768743693712,7.74555823,95185.0,95178.0,0.00484129]
[1768743693908,7.74555823,95191.0,95172.0,0.0997631]
[1768743694105,0.43060694,95189.0,95185.0,0.14056832]
[1768743694305,0.43060694,95189.0,95172.0,0.0997631]
[1768743694504,7.74555823,95187.0,95172.0,0.0997631]
[1768743694705,7.74555823,95187.0,95179.0,0.13926939]
[1768743694905,7.74787235,95186.0,95173.0,0.10506243]
[1768743695108,7.74555823,95186.0,95172.0,0.0997631]
[1768743695315,0.00231412,95185.0,95174.0,0.13926939]
[1768743695504,7.74555823,95179.0,95173.0,0.26356107]
[1768743695811,7.74555823,95177.0,95172.0,0.05321216]
[1768743696011,7.74555823,95179.0,95174.0,0.10506077]
[1768743696201,7.74555823,95179.0,95167.0,0.0997631]
[1768743696401,7.74555823,95175.0,95172.0,0.15655129]
[1768743696702,7.74555823,95179.0,95168.0,0.15699671]
[1768743696908,7.74555823,95182.0,95168.0,0.15699671]
[1768743697110,7.74555823,95178.0,95168.0,0.26206521]
[1768743697310,7.74555823,95181.0,95168.0,0.26206521]
[1768743697505,7.74555823,95177.0,95168.0,0.26206521]
[1768743697710,7.74555823,95179.0,95168.0,0.26206521]
[1768743697911,7.74555823,95177.0,95168.0,0.26206521]
[1768743698110,7.74555823,95176.0,95168.0,0.26206521]
[1768743698510,7.74555823,95174.0,95168.0,0.26206521]
[1768743698702,7.74555823,95176.0,95168.0,0.26206521]
[1768743699013,7.74555823,95178.0,95168.0,0.26206521]
[1768743699202,7.74555823,95175.0,95168.0,0.26206521]
[1768743699402,7.37242089,95176.0,95168.0,0.26206521]
[1768743699603,7.37242089,95173.0,95168.0,0.26206521]
[1768743699803,7.37242089,95176.0,95168.0,0.26206521]
[1768743700010,7.37010969,95177.0,95168.0,0.26206521]
[1768743700211,7.37010969,95175.0,95168.0,0.26206521]
[1768743700511,0.00231412,95182.0,95168.0,0.26206521]
[1768743700512,7.37010969,95176.0,95168.0,0.26206521]
[1768743700812,7.37010969,95175.0,95168.0,0.26206521]
[1768743701206,7.37010969,95171.0,95168.0,0.35247031]
[1768743701410,7.37010969,95174.0,95168.0,0.26206521]
[1768743701812,7.37010969,95170.0,95168.0,0.26206521]
[1768743702012,7.37010969,95174.0,95168.0,0.26206521]
[1768743702401,7.37010969,95170.0,95168.0,0.26206521]
[1768743702599,7.37010969,95173.0,95168.0,0.26206521]
[1768743702813,7.37010969,95174.0,95168.0,0.26206521]
[1768743703208,7.37010969,95170.0,95168.0,0.26206521]
[1768743703513,7.37010969,95173.0,95168.0,0.26206521]
[1768743703720,7.37010969,95174.0,95168.0,0.26206521]
[1768743704214,7.37010969,95170.0,95168.0,0.26206521]
[1768743704513,7.37010969,95173.0,95168.0,0.26206521]
[1768743704714,7.37010969,95174.0,95168.0,0.26206521]
[1768743705115,7.37010969,95169.0,95168.0,0.26206521]
[1768743705310,7.37010969,95173.0,95168.0,0.26206521]
[1768743705715,7.37010969,95169.0,95168.0,0.26206521]
[1768743706020,7.37010969,95173.0,95168.0,0.26206521]
[1768743706409,7.37010969,95169.0,95168.0,0.26206521]
[1768743706606,7.35234558,95173.0,95168.0,0.26206521]
[1768743707115,7.35234558,95169.0,95168.0,0.26206521]
[1768743707314,7.35234558,95172.0,95168.0,0.26206521]
[1768743707508,7.35234558,95173.0,95168.0,0.26206521]
[1768743707707,7.35234558,95173.0,95168.0,0.26306521]
[1768743707918,7.35234558,95169.0,95168.0,0.26306521]
[1768743708216,7.35234558,95172.0,95168.0,0.26306521]
[1768743708415,7.35234558,95173.0,95168.0,0.26206521]
[1768743709018,7.35234558,95169.0,95168.0,0.26206521]
[1768743709217,7.35234558,95172.0,95168.0,0.26206521]
[1768743709418,7.35234558,95173.0,95168.0,0.26206521]
[1768743709808,7.35234558,95169.0,95168.0,0.26206521]
[1768743710005,7.35234558,95173.0,95168.0,0.26206521]
[1768743710210,7.35234558,95172.0,95168.0,0.26206521]
[1768743710410,7.35234558,95171.0,95168.0,0.26206521]
[1768743710610,7.35234558,95172.0,95168.0,0.26206521]
[1768743710820,7.35234558,95171.0,95168.0,0.26206521]
[1768743711011,7.35234558,95172.0,95168.0,0.26206521]
[1768743711412,7.35234558,95169.0,95168.0,0.26206521]
[1768743711613,7.35234558,95171.0,95168.0,0.26206521]
[1768743711813,7.35234558,95172.0,95168.0,0.26206521]
[1768743712010,0.00231412,95181.0,95168.0,0.26206521]
[1768743712216,7.35234558,95170.0,95168.0,0.26206521]
[1768743712415,7.35234558,95171.0,95168.0,0.26206521]
[1768743712621,7.35234558,95169.0,95168.0,0.26206521]
[1768743712821,7.29453286,95170.0,95168.0,0.26206521]
[1768743713014,7.29453286,95169.0,95168.0,0.26206521]
[1768743715314,7.29453286,95169.0,95168.0,0.15699671]
[1768743715617,7.29453286,95169.0,95163.0,0.15733902]
[1768743715812,1.30272,95175.0,95163.0,0.15733902]
[1768743716009,7.29453286,95164.0,95163.0,0.2624158]
[1768743716213,0.00231169,95169.0,95163.0,0.2624158]
[1768743716423,7.08047907,95164.0,95163.0,0.31956386]
[1768743717323,6.29615907,95164.0,95163.0,0.31956386]
[1768743717524,5.09428207,95164.0,95163.0,0.31956386]
[1768743717826,4.52897507,95164.0,95163.0,0.32056386]
[1768743718619,4.08897507,95164.0,95163.0,0.4180485]
[1768743718926,0.44703501,95164.0,95163.0,0.32056386]
[1768743719122,0.00231412,95173.0,95163.0,0.32056386]
[1768743719321,0.43292106,95172.0,95163.0,0.32056386]
[1768743719522,0.43060694,95172.0,95163.0,0.32056386]
[1768743719724,0.00231412,95171.0,95163.0,0.32056386]
[1768743719925,0.09254831,95171.0,95163.0,0.32056386]
[1768743720123,0.00231412,95170.0,95163.0,0.32056386]
[1768743720429,0.09254831,95170.0,95163.0,0.32056386]
[1768743720628,0.00231412,95169.0,95163.0,0.32056386]
[1768743720828,0.09254831,95169.0,95155.0,0.0946]
[1768743721127,0.09023419,95168.0,95163.0,0.001]
[1768743721323,0.09023419,95168.0,95156.0,0.18082459]
[1768743721527,0.00231412,95169.0,95156.0,0.10508396]
[1768743721729,1.2e-07,95169.0,95160.0,0.04933297]
[1768743722526,1.2e-07,95169.0,95161.0,0.17799721]
[1768743722927,1.2e-07,95169.0,95161.0,0.18851021]
[1768743723132,1.41694184,95181.0,95161.0,0.18851021]
[1768743723330,0.43060694,95180.0,95162.0,0.04446599]
[1768743723734,0.11414184,95181.0,95163.0,0.00071642]
[1768743724025,0.63498297,95180.0,95163.0,0.10579706]
[1768743724223,0.63498297,95180.0,95163.0,0.10508064]
[1768743724423,0.63498297,95180.0,95163.0,0.10348488]
[1768743724623,0.63498297,95180.0,95164.0,0.00194586]
[1768743724826,0.11414184,95179.0,95164.0,0.00194586]
[1768743725026,0.11414184,95179.0,95163.0,0.10507292]
[1768743725335,0.20437603,95179.0,95164.0,0.00194586]
[1768743725632,0.20437603,95179.0,95160.0,0.07168474]
[1768743726019,0.20437603,95179.0,95161.0,0.10507347]
[1768743726425,0.20437603,95179.0,95162.0,0.07168474]
[1768743726626,0.43060694,95180.0,95163.0,0.04053684]
[1768743726816,0.43060694,95180.0,95163.0,0.14561252]
[1768743727018,0.43060694,95180.0,95163.0,0.10507568]
[1768743727430,1.30284,95195.0,95180.0,0.13763869]
[1768743727625,1.30284,95194.0,95181.0,0.1211]
[1768743727826,1.30284,95194.0,95181.0,0.27961814]
[1768743728026,1.30284,95194.0,95182.0,0.01051]
[1768743728230,1.30284,95194.0,95182.0,0.11558347]
[1768743728421,1.30284,95194.0,95183.0,0.27961814]
[1768743728736,1.39744,95193.0,95183.0,0.27961814]
[1768743729040,1.39744,95193.0,95184.0,0.22615581]
[1768743729429,1.39744,95193.0,95185.0,0.15690084]
[1768743729625,1.30284,95196.0,95185.0,0.15690084]
[1768743730039,1.30284,95196.0,95186.0,0.10505525]
[1768743730431,1.30284,95196.0,95187.0,0.15844947]
[1768743730828,1.30284,95196.0,95188.0,0.10505249]
[1768743731028,0.09023419,95205.0,95188.0,0.10505249]
[1768743731228,0.09023419,95203.0,95189.0,0.15717601]
[1768743731436,1.39744,95204.0,95189.0,0.15717601]
[1768743731437,0.09023419,95201.0,95189.0,0.15717601]
[1768743731640,0.11414184,95200.0,95189.0,0.15717601]
[1768743731945,0.11414184,95200.0,95183.0,0.15685507]
[1768743732241,0.11414184,95200.0,95183.0,0.26190315]
[1768743732441,0.11414184,95200.0,95183.0,0.25959049]
[1768743732636,1.30284,95199.0,95184.0,0.01051]
[1768743732834,0.0946,95198.0,95184.0,0.01051]
[1768743733029,0.0946,95198.0,95185.0,0.15783484]
[1768743733227,0.0946,95198.0,95185.0,0.26288292]
[1768743733431,0.0946,95198.0,95185.0,0.10504808]
[1768743733644,0.0946,95198.0,95186.0,0.15751894]
[1768743733834,0.0946,95198.0,95186.0,0.26257088]
[1768743734034,0.0946,95198.0,95185.0,0.15751894]
[1768743734334,0.0946,95198.0,95187.0,0.10505084]
[1768743734737,0.0946,95198.0,95188.0,0.15681925]
[1768743735234,0.0946,95198.0,95189.0,0.1211]
[1768743735441,0.0946,95198.0,95189.0,0.22614974]
[1768743735641,0.0946,95198.0,95190.0,0.15681925]
[1768743736040,0.0946,95198.0,95190.0,0.26186899]
[1768743736642,0.11414184,95200.0,95190.0,0.26186899]
[1768743736941,1.39736,95199.0,95190.0,0.26186899]
[1768743737644,0.11414184,95200.0,95190.0,0.26186899]
[1768743737841,1.39732,95199.0,95190.0,0.26186899]
[1768743738141,1.51146184,95199.0,95190.0,0.26186899]
[1768743739129,0.11414184,95198.0,95190.0,0.26186899]
[1768743739943,0.11414184,95198.0,95170.0,0.07549122]
[1768743739944,0.11414184,95195.0,95182.0,0.1211]
[1768743740146,0.20437603,95195.0,95191.0,0.15750889]
[1768743740338,0.20437603,95195.0,95190.0,0.14255697]
[1768743740531,0.20437603,95195.0,95192.0,0.15750889]
[1768743740736,0.09023419,95194.0,95192.0,0.15750889]
[1768743741244,0.11414184,95195.0,95192.0,0.15750889]
[1768743741848,0.0424637,95198.0,95192.0,0.15750889]
[1768743742250,0.0424637,95195.0,95192.0,0.11504519]
[1768743742551,0.20684438,95198.0,95192.0,0.11504519]
[1768743743048,0.20684438,95197.0,95192.0,0.11504519]
[1768743743244,0.20684438,95198.0,95192.0,0.11504519]
[1768743743444,1.39732,95199.0,95192.0,0.11504519]
[1768743743648,0.20684438,95198.0,95192.0,0.11504519]
[1768743743850,0.29938611,95197.0,95192.0,0.11504519]
[1768743744348,0.20684438,95196.0,95192.0,0.11504519]
[1768743745249,0.20684438,95195.0,95192.0,0.11504519]
[1768743745440,0.20684438,95196.0,95192.0,0.11504519]
[1768743745839,0.20684438,95195.0,95192.0,0.11504519]
[1768743746040,0.29938611,95196.0,95192.0,0.11504519]
[1768743746236,0.09254173,95196.0,95192.0,0.11504519]
[1768743746441,0.20684438,95195.0,95192.0,0.11504519]
[1768743746845,1.39732,95199.0,95192.0,0.11504519]
[1768743747042,0.09254173,95196.0,95192.0,0.11504519]
[1768743747345,0.09138666,95194.0,95183.0,0.1211]
[1768743747650,0.09138666,95194.0,95184.0,0.15654446]
[1768743747949,0.20684438,95192.0,95184.0,0.15654446]
[1768743748152,1.39732,95199.0,95184.0,0.15654446]
[1768743748153,1.30276,95191.0,95184.0,0.15654446]
[1768743748343,0.20684438,95194.0,95184.0,0.15654446]
[1768743748545,0.20684438,95191.0,95184.0,0.15654446]
[1768743748850,1.39732,95193.0,95184.0,0.15654446]
[1768743749051,0.20684438,95191.0,95184.0,0.15654446]
[1768743749550,0.20684438,95190.0,95184.0,0.15654446]
[1768743749751,0.20684438,95191.0,95184.0,0.15654446]
[1768743750148,1.39732,95193.0,95184.0,0.15654446]
[1768743750449,0.20684438,95190.0,95180.0,0.15670215]
[1768743750651,1.60416438,95193.0,95180.0,0.15670215]
[1768743750952,0.20684438,95192.0,95180.0,0.10505581]
[1768743751345,0.20684438,95192.0,95180.0,0.26335408]
[1768743752045,1.39732,95193.0,95180.0,0.26335408]
[1768743752245,0.20684438,95192.0,95180.0,0.26335408]
[1768743752641,0.20684438,95191.0,95180.0,0.26335408]
[1768743752848,0.20684438,95192.0,95180.0,0.26335408]
[1768743753250,0.20684438,95191.0,95180.0,0.3388453]
[1768743753450,0.20684438,95192.0,95180.0,0.3388453]
[1768743753656,1.39732,95193.0,95180.0,0.3388453]
[1768743753853,0.20684438,95191.0,95180.0,0.3388453]
[1768743754061,1.30276,95190.0,95180.0,0.3388453]
[1768743754248,1.46225435,95190.0,95180.0,0.3388453]
[1768743754850,1.46225435,95190.0,95180.0,0.26335408]
[1768743755360,1.46225435,95190.0,95180.0,0.3388453]
[1768743755562,1.25540997,95190.0,95180.0,0.3388453]
[1768743755858,0.20684438,95189.0,95180.0,0.3388453]
[1768743756255,0.20684438,95189.0,95181.0,0.07549122]
[1768743756458,0.20684438,95189.0,95182.0,0.0953885]
[1768743756658,0.08453318,95189.0,95183.0,0.0953885]
[1768743756854,0.08453318,95188.0,95183.0,0.0953885]
[1768743757055,0.08453318,95187.0,95185.0,0.0953885]
[1768743757264,0.08453318,95188.0,95185.0,0.0953885]
[1768743757465,0.08453318,95186.0,95183.0,0.23399633]
[1768743757768,0.08453318,95187.0,95186.0,0.15675376]
[1768743758161,1.30276,95187.0,95184.0,0.15675376]
[1768743758468,1.30276,95187.0,95183.0,0.07549122]
[1768743758864,1.30276,95187.0,95184.0,0.15851767]
[1768743759564,0.11340975,95197.0,95184.0,0.15851767]
[1768743759769,1.39732,95196.0,95184.0,0.23400889]
[1768743760061,0.09456,95195.0,95184.0,0.07549122]
[1768743760463,0.09456,95195.0,95185.0,0.15794312]
[1768743760671,0.11340975,95200.0,95185.0,0.15794312]
[1768743760672,1.3028,95194.0,95185.0,0.15794312]
[1768743760969,1.39732,95193.0,95185.0,0.23343434]
[1768743761370,1.39732,95193.0,95185.0,0.07549122]
[1768743761561,0.11340975,95200.0,95185.0,0.07549122]
[1768743761870,1.39736,95199.0,95186.0,0.26336249]
[1768743762169,0.11340975,95201.0,95186.0,0.26336249]
[1768743762369,1.3028,95198.0,95186.0,0.26336249]
[1768743763668,0.11340975,95201.0,95186.0,0.26336249]
[1768743763972,1.3028,95197.0,95186.0,0.26336249]
[1768743764974,1.39736,95196.0,95186.0,0.33885371]
[1768743765173,1.25545546,95196.0,95186.0,0.26336249]
[1768743765675,0.11340975,95201.0,95186.0,0.26336249]
[1768743765875,1.39736,95200.0,95186.0,0.26336249]
[1768743767272,1.3028,95199.0,95186.0,0.26336249]
[1768743767474,1.39736,95199.0,95186.0,0.26336249]
[1768743768276,0.11340975,95201.0,95186.0,0.26336249]
[1768743768471,1.30284,95198.0,95186.0,0.26336249]
[1768743769771,1.41624975,95198.0,95186.0,0.26336249]
[1768743770277,0.11340975,95198.0,95186.0,0.26336249]
[1768743770570,1.3974,95197.0,95186.0,0.26336249]
[1768743772873,1.3974,95197.0,95186.0,0.2610508]
[1768743774077,1.50595616,95197.0,95186.0,0.2610508]
[1768743774267,0.10855616,95197.0,95186.0,0.2610508]
[1768743774463,1.3974,95196.0,95186.0,0.2610508]
[1768743777375,0.10855616,95199.0,95186.0,0.2610508]
[1768743777576,1.50599616,95198.0,95186.0,0.2610508]
[1768743779475,0.10855616,95197.0,95186.0,0.2610508]
[1768743780982,0.10855616,95197.0,95186.0,0.25873862]
[1768743781378,0.10855616,95195.0,95186.0,0.25873862]
[1768743781578,0.00305542,95195.0,95186.0,0.25873862]
[1768743782377,1.39744,95196.0,95186.0,0.25873862]
[1768743784986,0.0122476,95198.0,95186.0,0.25873862]
[1768743785188,1.39748,95197.0,95186.0,0.25873862]
[1768743785487,1.30292,95196.0,95186.0,0.25873862]
[1768743786386,0.00983532,95200.0,95186.0,0.25873862]
[1768743786583,1.30292,95199.0,95186.0,0.34891881]
[1768743786786,1.39748,95199.0,95186.0,0.34891881]
[1768743789282,1.39748,95198.0,95187.0,0.09249199]
[1768743789688,1.39748,95198.0,95188.0,0.15823221]
[1768743789986,1.39748,95198.0,95188.0,0.10505029]
[1768743790188,1.39748,95197.0,95187.0,0.15830107]
[1768743790489,1.39748,95196.0,95189.0,0.15830107]
[1768743790686,1.39748,95196.0,95188.0,0.26335081]
[1768743790886,1.39748,95196.0,95187.0,0.09249199]
[1768743791281,1.39748,95196.0,95189.0,0.1575465]
[1768743791582,1.25557417,95196.0,95187.0,0.09249199]
[1768743791888,1.25557417,95196.0,95190.0,0.15699746]
[1768743792286,1.25557417,95196.0,95187.0,0.09249199]
[1768743792789,1.25557417,95196.0,95190.0,0.15699746]
[1768743792983,1.25557417,95196.0,95188.0,0.2620472]
[1768743793189,1.25557417,95196.0,95187.0,0.09249199]
[1768743793390,1.25557417,95196.0,95191.0,0.15785353]
[1768743793588,1.25557417,95196.0,95189.0,0.15785353]
[1768743793780,1.30296,95195.0,95188.0,0.05514695]
[1768743793978,0.10855616,95211.0,95191.0,0.24348517]
[1768743794176,0.10855616,95211.0,95192.0,0.07549122]
[1768743794386,0.10855616,95211.0,95191.0,0.07549122]
[1768743794586,0.10855616,95211.0,95193.0,0.10504201]
[1768743794791,0.10855616,95211.0,95194.0,0.010509]
[1768743794993,0.10855616,95211.0,95194.0,0.15716794]
[1768743795384,0.10855616,95211.0,95193.0,0.15716794]
[1768743795692,0.10855616,95211.0,95195.0,0.10503925]
[1768743796089,0.10855616,95211.0,95196.0,0.15835332]
[1768743796395,0.10855616,95211.0,95193.0,0.10503925]
[1768743796595,0.10855616,95211.0,95194.0,0.15835332]
[1768743797094,0.10855616,95211.0,95193.0,0.15745853]
[1768743797280,0.20686262,95209.0,95191.0,0.07549122]
[1768743797485,0.20686262,95207.0,95195.0,0.10503815]
[1768743797688,0.20686262,95207.0,95192.0,0.15745853]
[1768743797893,0.10855616,95211.0,95196.0,0.15774282]
[1768743798093,0.10855616,95211.0,95193.0,0.10503981]
[1768743798296,0.10855616,95211.0,95194.0,0.15774282]
[1768743798698,0.10855616,95211.0,95193.0,0.10503981]
[1768743798895,0.09830646,95207.0,95194.0,0.15824527]
[1768743799093,1.39752,95216.0,95194.0,0.15824527]
[1768743799094,0.10855616,95204.0,95194.0,0.15824527]
[1768743799299,0.10855616,95203.0,95190.0,0.07549122]
[1768743799500,0.10855616,95203.0,95193.0,0.15824527]
[1768743799701,0.10855616,95203.0,95195.0,0.10504312]
[1768743800001,0.10855616,95203.0,95196.0,0.15777882]
[1768743800190,0.10855616,95203.0,95196.0,0.26282194]
[1768743800390,0.10855616,95202.0,95191.0,0.15777882]
[1768743800592,0.20686262,95202.0,95197.0,0.10504256]
[1768743800994,0.12447317,95198.0,95184.0,0.00231131]
[1768743801290,0.09830646,95198.0,95191.0,0.05859292]
[1768743801597,0.03080084,95204.0,95192.0,0.15859292]
[1768743801902,0.00462155,95202.0,95186.0,0.26340501]
[1768743802100,0.03080084,95204.0,95186.0,0.26340501]
[1768743802401,0.03080084,95204.0,95184.0,0.00231131]
[1768743802597,0.03080084,95203.0,95187.0,0.2634006]
[1768743802802,0.03542239,95203.0,95186.0,0.15835307]
[1768743803100,0.03542239,95203.0,95184.0,0.00231131]
[1768743803101,0.03080084,95203.0,95188.0,0.26316873]
[1768743803300,0.00462155,95202.0,95187.0,0.1581212]
[1768743803492,0.03080084,95203.0,95189.0,0.1581212]
[1768743803700,0.03542239,95203.0,95189.0,0.26316818]
[1768743803901,0.00462155,95202.0,95188.0,0.15783808]
[1768743804204,0.03080084,95203.0,95190.0,0.26288506]
[1768743804404,0.03080084,95203.0,95190.0,0.15783808]
[1768743804707,0.00462155,95201.0,95191.0,0.15783808]
[1768743804895,0.03080084,95203.0,95191.0,0.15783808]
[1768743805198,0.00462155,95200.0,95188.0,0.2634982]
[1768743805399,0.03080084,95203.0,95184.0,0.00231131]
[1768743805597,0.03080084,95203.0,95189.0,0.26349599]
[1768743805795,0.09456,95205.0,95189.0,0.26349599]
[1768743805997,0.00462155,95202.0,95188.0,0.15845067]
[1768743806206,0.00462155,95203.0,95190.0,0.26283404]
[1768743806394,0.09918155,95205.0,95190.0,0.26283404]
[1768743806595,0.09456,95205.0,95188.0,0.15830123]
[1768743806795,0.09918155,95205.0,95188.0,0.15830123]
[1768743806991,0.00462155,95203.0,95191.0,0.15434927]
[1768743807196,0.00462155,95204.0,95189.0,0.15820282]